fUSD/lending_fUSD_20241030
["ID","MTS","AMOUNT","RATE_DAILY","PERIOD"]
[341058800,1730308296472,-699.0,0.00044144,30]
[341058801,1730308296484,-699.0,0.00044144,30]
[341058802,1730308296493,-699.0,0.00044144,30]
[341058803,1730308296503,-699.0,0.00044144,30]
[341058804,1730308296513,-704.22537749,0.00044144,30]
[341058805,1730308296522,-160.0,0.00044144,30]
[341058806,1730308296532,-160.0,0.00044144,30]
[341058807,1730308296541,-160.0,0.00044144,30]
[341058808,1730308296551,-160.0,0.00044144,30]
[341058809,1730308296561,-160.0,0.00044144,30]
[341058810,1730308296570,-160.0,0.00044144,30]
[341058811,1730308296579,-191.23953639,0.00044144,30]
[341058812,1730308296589,-160.0,0.00044144,30]
[341058813,1730308296598,-160.0,0.00044144,30]
[341058814,1730308296608,-160.0,0.00044144,30]
[341058815,1730308296617,-160.0,0.00044144,30]
[341058816,1730308296627,-160.0,0.00044144,30]
[341058817,1730308296636,-200.0,0.00044144,30]
[341058818,1730308296646,-814.0,0.00044144,30]
[341058819,1730308296655,-814.0,0.00044144,30]
[341058820,1730308296664,-814.0,0.00044144,30]
[341058821,1730308296674,-814.0,0.00044144,30]
[341058822,1730308296683,-814.0,0.00044144,30]
[341058823,1730308296803,-814.0,0.00044144,30]
[341058824,1730308296813,-814.0,0.00044144,30]
[341058825,1730308296823,-814.0,0.00044144,30]
[341058826,1730308296832,-814.0,0.00044144,30]
[341058827,1730308296841,-814.0,0.00044144,30]
[341058828,1730308296850,-814.0,0.00044144,30]
[341058829,1730308296860,-824.16485003,0.00044144,30]
[341058830,1730308296870,-160.0,0.00044144,30]
[341058831,1730308296879,-160.0,0.00044144,30]
[341058832,1730308296888,-160.0,0.00044144,30]
[341058833,1730308296898,-160.0,0.00044144,30]
[341058834,1730308296907,-160.0,0.00044144,30]
[341058835,1730308296917,-160.0,0.00044144,30]
[341058836,1730308296927,-310.56374887,0.00044144,30]
[341058837,1730308296938,-31417765.75430104,0.00044144,20]
[341058839,1730308364134,50000.0,0.00044144,30]
[341058840,1730308367697,50000.0,0.00044144,31]
[341058841,1730308371071,50000.0,0.00044144,32]
[341058842,1730308374617,50000.0,0.00044144,33]
[341058843,1730308378371,50000.0,0.00044144,34]
[341058844,1730308562274,50000.0,0.00044124,30]
[341058845,1730308566257,50000.0,0.00044124,31]
[341058846,1730308569554,50000.0,0.00044124,32]
[341058847,1730308573301,50000.0,0.00044124,33]
[341058848,1730308577023,50000.0,0.00044124,34]
[341058849,1730308674988,300.32884668,0.00044124,30]
[341058850,1730309119963,5000.0,9e-05,2]
[341058851,1730309119990,2820.10482483,9e-05,2]
[341058858,1730309164323,157.33,0.00015342,2]
[341058859,1730309175707,5000.0,0.00044124,120]
[341058860,1730309198205,150.0,0.0002,3]
[341058861,1730309225542,168.38632179,0.00044124,120]
[341058886,1730309244432,522.32513131,0.0002,5]
[341058887,1730309260247,150.37093257,0.00044124,120]
[341058890,1730309320551,1159.00683701,0.00044124,120]
[341058891,1730309321550,157.99834795,0.00044124,30]
[341058892,1730309322304,3008.64730326,0.00044124,120]
[341058894,1730309323930,418.12603709,0.00044124,120]
[341059083,1730309374163,500.0,0.00044124,30]
[341059100,1730309432322,-4093.05482221,0.00021,4]
[341059115,1730309438291,-452.90409866,0.00021,4]
[341059116,1730309438477,-6627.53486545,0.00021,4]
[341059117,1730309438487,-1053.0,0.00023921,2]
[341059118,1730309438496,-104380.8595058,0.00023922,2]
[341059119,1730309438506,-970.87093827,0.00024,2]
[341059120,1730309438515,-302.33326351,0.00024,7]
[341059121,1730309438525,-774.57754996,0.0002402,2]
[341059122,1730309438534,-3514.22327992,0.0002421,2]
[341059123,1730309438544,-1306.2,0.0002421,2]
[341059124,1730309438554,-3399.2137162,0.000245,2]
[341059125,1730309438564,-151.94768915,0.00024899,2]
[341059126,1730309438573,-182.94,0.00024929,2]
[341059127,1730309438583,-10594.77510853,0.0002495,2]
[341059128,1730309438592,-33008.99208544,0.00025,2]
[341059129,1730309438603,-3848.13742299,0.00025,2]
[341059130,1730309438637,-638.76806,0.00025,2]
[341059131,1730309438650,-7757.75011502,0.00025,2]
[341059133,1730309440355,-2402.92756555,0.00025,2]
[341059134,1730309440405,-3497.49499991,0.00025,2]
[341059135,1730309440636,-402.07999999,0.00025,2]
[341059138,1730309440647,-349.86000034,0.00025,2]
[341059229,1730309443344,-1760.36188593,0.00025,2]
[341059230,1730309443355,-13784.26803368,0.00025,2]
[341059231,1730309443364,-2893.7399156,0.00025,2]
[341059232,1730309443376,-3215.62110359,0.000251,2]
[341059233,1730309443385,-500.0,0.000256,2]
[341059234,1730309443394,-7227.32,0.00026011,2]
[341059235,1730309443403,-1136.36,0.0002603,2]
[341059236,1730309443413,-12453.4,0.00026232,2]
[341059237,1730309443422,-12457.93076095,0.000264,2]
[341059238,1730309443433,-427.51,0.00026947,2]
[341059239,1730309443443,-4597.22,0.00027,120]
[341059240,1730309443453,-40156.36870374,0.00027,7]
[341059241,1730309443463,-11146.23590736,0.00027,2]
[341059242,1730309443472,-409.53651408,0.00027,2]
[341059243,1730309443482,-3000.0,0.00027,2]
[341059244,1730309443492,-983.64112772,0.00027,2]
[341059245,1730309443503,-191.06415281,0.000275,2]
[341059246,1730309443513,-157.33,0.00027507,2]
[341059247,1730309443522,-3372.9892187,0.00028,2]
[341059248,1730309443531,-1136.36,0.00028294,2]
[341059249,1730309443542,-3367.98470626,0.000299,2]
[341059284,1730309446465,-4938.05201981,0.000299,2]
[341059285,1730309446475,-2445.74717391,0.0003,2]
[341060606,1730309463197,500.0,0.00044124,30]
[341061090,1730309519412,50000.0,0.00044124,30]
[341061091,1730309523398,50000.0,0.00044124,31]
[341061092,1730309526667,50000.0,0.00044124,32]
[341061093,1730309530055,50000.0,0.00044124,33]
[341061094,1730309533230,50000.0,0.00044124,34]
[341061095,1730309550548,500.0,0.00044124,30]
[341061096,1730309552710,500.0,0.00044124,30]
[341061097,1730309552982,500.0,0.00044124,30]
[341061098,1730309553287,163.92,0.00044124,30]
[341061099,1730309556391,500.0,0.00044124,30]
[341061100,1730309565915,500.0,0.00044124,30]
[341061101,1730309566197,500.0,0.00044124,30]
[341061102,1730309566449,500.0,0.00044124,30]
[341061103,1730309566739,500.0,0.00044124,30]
[341061104,1730309567006,534.42291054,0.00044124,30]
[341061105,1730309567476,500.0,0.00044124,30]
[341061106,1730309567749,500.0,0.00044124,30]
[341061107,1730309568139,500.0,0.00044124,30]
[341061108,1730309568418,500.0,0.00044124,30]
[341061109,1730309568712,500.0,0.00044124,30]
[341061110,1730309568995,500.0,0.00044124,30]
[341061111,1730309569255,579.42159626,0.00044124,30]
[341061112,1730309600195,500.0,0.00044124,30]
[341061113,1730309600463,500.0,0.00044124,30]
[341061114,1730309600721,179.4,0.00044124,30]
[341061115,1730309603286,500.0,0.00044124,30]
[341061116,1730309604996,500.0,0.00044124,30]
[341061117,1730309624972,500.0,0.00044124,30]
[341061118,1730309625239,500.0,0.00044124,30]
[341061119,1730309625522,500.0,0.00044124,30]
[341061120,1730309625786,500.0,0.00044124,30]
[341061121,1730309626048,500.0,0.00044124,30]
[341061122,1730309626337,500.0,0.00044124,30]
[341061123,1730309626600,500.0,0.00044124,30]
[341061124,1730309628104,500.0,0.00044124,30]
[341061125,1730309628384,500.0,0.00044124,30]
[341061126,1730309628658,500.0,0.00044124,30]
[341061127,1730309628913,500.0,0.00044124,30]
[341061128,1730309629226,500.0,0.00044124,30]
[341061129,1730309629520,500.0,0.00044124,30]
[341061130,1730309631219,500.0,0.00044124,30]
[341061131,1730309631560,500.0,0.00044124,30]
[341061132,1730309631864,500.0,0.00044124,30]
[341061133,1730309632118,500.0,0.00044124,30]
[341061134,1730309632410,500.0,0.00044124,30]
[341061135,1730309632694,500.0,0.00044124,30]
[341061136,1730309632966,208.08437198,0.00044124,30]
[341061138,1730309661378,500.0,0.00044124,30]
[341061139,1730309661648,500.0,0.00044124,30]
[341061140,1730309661937,500.0,0.00044124,30]
[341061141,1730309662004,157.34,0.00015342,2]
[341061142,1730309662205,500.0,0.00044124,30]
[341061143,1730309662505,500.0,0.00044124,30]
[341061144,1730309662766,500.0,0.00044124,30]
[341061145,1730309663047,500.0,0.00044124,30]
[341061146,1730309663312,500.0,0.00044124,30]
[341061147,1730309663616,500.0,0.00044124,30]
[341061148,1730309663890,500.0,0.00044124,30]
[341061149,1730309664169,500.0,0.00044124,30]
[341061150,1730309664587,500.0,0.00044124,30]
[341061151,1730309665060,500.0,0.00044124,30]
[341061152,1730309665349,500.0,0.00044124,30]
[341061153,1730309665616,500.0,0.00044124,30]
[341061154,1730309666178,584.33,0.00044124,30]
[341061155,1730309670564,524.86542822,0.00044124,30]
[341061156,1730309691256,500.0,0.00044125,30]
[341061157,1730309691516,500.0,0.00044125,30]
[341061158,1730309691788,500.0,0.00044125,30]
[341061159,1730309692075,500.0,0.00044125,30]
[341061160,1730309692355,500.0,0.00044125,30]
[341061161,1730309692630,499.15357848,0.00044125,30]
[341061162,1730309699329,500.0,0.00044125,30]
[341061163,1730309699655,199.0,0.00044125,30]
[341061164,1730309717185,202.40906088,0.00044125,30]
[341061165,1730309738236,500.0,0.00044125,30]
[341061166,1730309738537,500.0,0.00044125,30]
[341061167,1730309738794,500.0,0.00044125,30]
[341061168,1730309739343,500.0,0.00044125,30]
[341061169,1730309739620,500.0,0.00044125,30]
[341061170,1730309739894,500.0,0.00044125,30]
[341061171,1730309740517,500.0,0.00044125,30]
[341061172,1730309740798,500.0,0.00044125,30]
[341061173,1730309741144,500.0,0.00044125,30]
[341061174,1730309741351,500.0,0.00044125,30]
[341061175,1730309741620,500.0,0.00044125,30]
[341061176,1730309741882,500.0,0.00044125,30]
[341061177,1730309742167,500.0,0.00044125,30]
[341061178,1730309742436,500.0,0.00044125,30]
[341061179,1730309742709,500.0,0.00044125,30]
[341061180,1730309742975,500.0,0.00044125,30]
[341061181,1730309743251,500.0,0.00044125,30]
[341061182,1730309743529,500.0,0.00044125,30]
[341061183,1730309743838,500.0,0.00044125,30]
[341061184,1730309744100,500.0,0.00044125,30]
[341061185,1730309744351,500.0,0.00044125,30]
[341061186,1730309744662,500.0,0.00044125,30]
[341061187,1730309744942,260.85854645,0.00044125,30]
[341061188,1730309773504,217.01313229,0.00044125,30]
[341061189,1730309798935,567.62,0.00044125,30]
[341061190,1730309802748,500.0,0.00044125,30]
[341061191,1730309803018,500.0,0.00044125,30]
[341061192,1730309804753,50000.0,0.00044125,32]
[341061193,1730309809621,50000.0,0.00044125,33]
[341061194,1730309813228,50000.0,0.00044125,34]
[341061195,1730309817070,50000.0,0.00044125,35]
[341061196,1730309825098,500.0,0.00044125,30]
[341061197,1730309828864,636.02,0.00044125,30]
[341061198,1730309829152,636.02,0.00044125,30]
[341061199,1730309829420,636.02,0.00044125,30]
[341061200,1730309829698,636.02,0.00044125,30]
[341061201,1730309829964,636.02,0.00044125,30]
[341061202,1730309830248,636.02,0.00044125,30]
[341061203,1730309830521,636.02,0.00044125,30]
[341061204,1730309830792,636.02,0.00044125,30]
[341061205,1730309831069,636.02,0.00044125,30]
[341061206,1730309831324,636.02,0.00044125,30]
[341061207,1730309831584,636.02,0.00044125,30]
[341061208,1730309831846,636.02,0.00044125,30]
[341061209,1730309832121,636.02,0.00044125,30]
[341061210,1730309832436,636.02,0.00044125,30]
[341061211,1730309832704,636.02,0.00044125,30]
[341061212,1730309833143,636.02,0.00044125,30]
[341061213,1730309833268,636.02,0.00044125,30]
[341061214,1730309833542,636.02,0.00044125,30]
[341061215,1730309833812,636.02,0.00044125,30]
[341061216,1730309834091,636.02,0.00044125,30]
[341061217,1730309834764,636.02,0.00044125,30]
[341061218,1730309834992,636.02,0.00044125,30]
[341061219,1730309835264,636.02,0.00044125,30]
[341061220,1730309835857,636.09,0.00044125,30]
[341061221,1730309851856,500.0,0.00044125,30]
[341061222,1730309977237,50000.0,0.00044124,32]
[341061223,1730309980628,50000.0,0.00044124,33]
[341061224,1730309983735,50000.0,0.00044124,34]
[341061225,1730309987144,50000.0,0.00044124,35]
[341061226,1730310003193,500.0,0.00044124,30]
[341061227,1730310003647,500.0,0.00044124,30]
[341061228,1730310003778,500.0,0.00044124,30]
[341061229,1730310004198,500.0,0.00044124,30]
[341061230,1730310004477,500.0,0.00044124,30]
[341061231,1730310004754,500.0,0.00044124,30]
[341061232,1730310005021,500.0,0.00044124,30]
[341061233,1730310005323,500.0,0.00044124,30]
[341061234,1730310005591,500.0,0.00044124,30]
[341061235,1730310005846,500.0,0.00044124,30]
[341061236,1730310006587,500.0,0.00044124,30]
[341061237,1730310006883,500.0,0.00044124,30]
[341061238,1730310007218,500.0,0.00044124,30]
[341061239,1730310007496,500.0,0.00044124,30]
[341061240,1730310007776,500.0,0.00044124,30]
[341061241,1730310008088,283.98,0.00044124,30]
[341061242,1730310010245,500.0,0.00044124,30]
[341061243,1730310010532,500.0,0.00044124,30]
[341061244,1730310010813,500.0,0.00044124,30]
[341061245,1730310011094,500.0,0.00044124,30]
[341061246,1730310011376,500.0,0.00044124,30]
[341061247,1730310011699,500.0,0.00044124,30]
[341061248,1730310011897,500.0,0.00044124,30]
[341061249,1730310012165,500.0,0.00044124,30]
[341061250,1730310012447,500.0,0.00044124,30]
[341061251,1730310013130,500.0,0.00044124,30]
[341061265,1730310013725,567.76,0.00044124,30]
[341061326,1730310027353,500.0,0.00044124,30]
[341061327,1730310027613,500.0,0.00044124,30]
[341061328,1730310027878,500.0,0.00044124,30]
[341061329,1730310028175,500.0,0.00044124,30]
[341061330,1730310028443,500.0,0.00044124,30]
[341061331,1730310028712,500.0,0.00044124,30]
[341061332,1730310028980,500.0,0.00044124,30]
[341061333,1730310029244,500.0,0.00044124,30]
[341061334,1730310029512,500.0,0.00044124,30]
[341061335,1730310029793,500.0,0.00044124,30]
[341061336,1730310030070,202.66,0.00044124,30]
[341061399,1730310038134,500.0,0.00044124,30]
[341061400,1730310038407,500.0,0.00044124,30]
[341061401,1730310038671,500.0,0.00044124,30]
[341061402,1730310038930,500.0,0.00044124,30]
[341061403,1730310039182,500.0,0.00044124,30]
[341061404,1730310039502,500.0,0.00044124,30]
[341061405,1730310046589,500.0,0.00044124,30]
[341061406,1730310086635,50000.0,0.00044124,34]
[341061407,1730310091178,50000.0,0.00044124,35]
[341061413,1730310153505,500.0,0.00044124,30]
[341061414,1730310153793,500.0,0.00044124,30]
[341061415,1730310154065,500.0,0.00044124,30]
[341061416,1730310154352,500.0,0.00044124,30]
[341061417,1730310154737,484.67188265,0.00044124,30]
[341061418,1730310162183,4297.82872769,0.00044124,33]
[341061427,1730310199801,156.73,0.00015342,2]
[341061634,1730310631467,-2639.28315754,0.000253,2]
[341061635,1730310631477,-399.82770227,0.00029795,2]
[341061636,1730310631487,-412.7937,0.000299,2]
[341061637,1730310631497,-6624.80298111,0.0003,2]
[341061638,1730310631507,-2005.57811499,0.0003,2]
[341061639,1730310631581,-3060.19211404,0.0003,2]
[341061640,1730310631592,-294.74126847,0.0003,2]
[341061641,1730310631698,-332.82649927,0.0003,2]
[341061642,1730310631757,-358.96,0.0003,2]
[341061643,1730310631769,-5554.37531157,0.0003,2]
[341061644,1730310631778,-1201.9913,0.00030707,7]
[341061645,1730310631788,-11037.94277244,0.00030707,2]
[341061649,1730310637542,-13075.39337038,0.00030707,2]
[341061650,1730310637553,-1127.29,0.00030729,2]
[341061651,1730310637563,-972.64548915,0.00030906,2]
[341061652,1730310637572,-972.64548914,0.00030906,2]
[341061653,1730310637582,-171.12,0.00031161,2]
[341061654,1730310637591,-4133.70365313,0.00031161,2]
[341061731,1730310639847,-318.28634687,0.00031161,2]
[341061733,1730310639858,-150.99,0.00031161,2]
[341061735,1730310639867,-575.93,0.0003141,2]
[341061736,1730310639877,-774.37,0.0003141,2]
[341061737,1730310639887,-200.0,0.00032348,2]
[341061738,1730310639896,-655.32365312,0.00032427,2]
[341061754,1730310642453,-657.06634688,0.00032427,2]
[341061755,1730310642463,-402.98,0.00032442,2]
[341061756,1730310642472,-1000.0,0.00032468,2]
[341061757,1730310642483,-7308.1434,0.00032478,2]
[341061758,1730310642493,-304.04,0.00032478,2]
[341061759,1730310642503,-408.22,0.00032535,2]
[341061760,1730310642512,-2398.19585153,0.00032578,3]
[341061761,1730310642569,-9371.52102756,0.00032578,3]
[341061762,1730310642696,-1111.77976804,0.00032578,3]
[341061764,1730310645493,-589.36750276,0.00032578,3]
[341061765,1730310645503,-453.92,0.00032647,2]
[341061766,1730310645513,-1852.42,0.00032654,2]
[341061767,1730310645523,-150.0,0.00032654,7]
[341061768,1730310645534,-250.0,0.00032684,2]
[341061769,1730310645543,-200.0,0.00032689,2]
[341061770,1730310645553,-685.75,0.00032694,2]
[341061771,1730310645563,-541.39,0.00032694,2]
[341061772,1730310645573,-683.48,0.00032694,2]
[341061773,1730310645582,-23900.0,0.00032698,2]
[341061774,1730310645592,-427.22,0.00032712,2]
[341061775,1730310645603,-194.67,0.0003273,2]
[341061776,1730310645613,-2682.01,0.00032769,2]
[341061777,1730310645623,-1127.29,0.00032993,2]
[341061778,1730310645633,-202.55,0.0003307,2]
[341061779,1730310645642,-250.0,0.00033095,2]
[341061780,1730310645652,-250.0,0.00033195,120]
[341061781,1730310645662,-157.82,0.00033222,2]
[341061782,1730310645672,-171.12,0.00033238,2]
[341061783,1730310645682,-152.0,0.00033676,3]
[341061784,1730310645692,-500.0,0.00034275,5]
[341061785,1730310645702,-224.668,0.000349,2]
[341061786,1730310645712,-250.40018124,0.000349,2]
[341061787,1730310645739,-951.62161876,0.000349,2]
[341061788,1730310645749,-272.66508296,0.000349,2]
[341062143,1730311831780,-350.0,0.0003,2]
[341062144,1730311831791,-1811.8935898,0.000318,2]
[341062145,1730311831801,-513.77976954,0.000319,2]
[341062146,1730311831939,-924.13735698,0.000319,2]
[341062147,1730311831949,-732.49041872,0.0003198,2]
[341062170,1730311837752,-3033.21549008,0.0003198,2]
[341062171,1730311837760,-999.99999999,0.00032,20]
[341062172,1730311837770,-922.14971769,0.00032,2]
[341062173,1730311837826,-553.208,0.00032,2]
[341062174,1730311839613,-5000.0,0.00032,2]
[341062175,1730311839756,-640.23141278,0.00032,2]
[341062176,1730311839766,-1244.15,0.00032083,2]
[341062177,1730311839775,-163.87041872,0.00032498,2]
[341062178,1730311839788,-165.10025841,0.00033216,2]
[341062179,1730311839797,-2813.24791009,0.00033611,2]
[341062180,1730311842596,-618.75208991,0.00033611,2]
[341062181,1730311842606,-250.0,0.00033667,2]
[341062182,1730311842615,-149.71687949,0.00033863,7]
[341062183,1730311842672,-0.28312051,0.00033863,7]
[341062184,1730311842682,-250.0,0.0003389,2]
[341062185,1730311842691,-341.74,0.0003389,2]
[341062186,1730311842700,-800.0,0.00033998,2]
[341062187,1730311842710,-171.12,0.00033998,2]
[341062188,1730311842719,-8851.14518974,0.00034217,2]
[341062189,1730311842813,-5941.90320121,0.00034217,2]
[341062190,1730311842891,-2734.9,0.00034217,2]
[341062208,1730311845716,-804.1102207,0.00034217,2]
[341062353,1730311877639,157.33,0.00015342,2]
[341062367,1730312341251,300.0,0.00019725,2]
[341062369,1730312442253,150.0,0.000202,2]
[341062376,1730312885693,39677.9866,0.00015,2]
[341062377,1730312885716,68067.7834,0.00015,2]
[341062398,1730312957563,156.73,0.00015342,2]
[341062414,1730313031806,-972.72507669,0.00022,2]
[341062415,1730313031889,-2499.00083943,0.00022,2]
[341062416,1730313031898,-1041.60032927,0.0002401,2]
[341062417,1730313031908,-264.76530792,0.000263,2]
[341062418,1730313031917,-583.1642724,0.000264,2]
[341062419,1730313031926,-1220.30376164,0.000264,2]
[341062420,1730313031935,-11146.23590736,0.00027,2]
[341062421,1730313031948,-409.53651408,0.00027,2]
[341062422,1730313031957,-3000.0,0.00027,2]
[341062423,1730313031966,-983.64112772,0.00027,2]
[341062424,1730313031975,-191.06415281,0.000275,2]
[341062425,1730313031984,-3372.9892187,0.00028,2]
[341062426,1730313031993,-3367.98470626,0.000299,2]
[341062427,1730313032002,-157.33,0.00030548,2]
[341062428,1730313032011,-1251.01,0.00031265,2]
[341062429,1730313032020,-23900.0,0.0003286,2]
[341062430,1730313032029,-362.65,0.00033008,2]
[341062431,1730313032039,-306.74,0.00033025,2]
[341062432,1730313032048,-222.78,0.00033146,2]
[341062433,1730313032057,-1000.0,0.00033369,2]
[341062434,1730313032066,-200.0,0.00033369,2]
[341062435,1730313032075,-2324.05,0.0003338,2]
[341062436,1730313032084,-150.0,0.0003341,7]
[341062437,1730313032093,-250.0,0.00033415,2]
[341062438,1730313032102,-1251.01,0.00033529,2]
[341062439,1730313032111,-903.32843613,0.0003378,2]
[341062440,1730313032121,-297.98567881,0.00033843,2]
[341062441,1730313032130,-186.5,0.0003387,2]
[341062442,1730313032139,-18013.58270951,0.0003388,2]
[341062443,1730313032148,-1542.74703666,0.0003467,3]
[341062444,1730313032159,-1568.89661484,0.0003467,3]
[341062445,1730313032168,-6065.039289,0.000348,2]
[341062446,1730313032304,-222.78,0.00034803,2]
[341062447,1730313032317,-2465.98124671,0.00034899,2]
[341062448,1730313032329,-5081.3958,0.000349,2]
[341062449,1730313032338,-390.90704916,0.000349,2]
[341062450,1730313032350,-1609.09295084,0.000349,2]
[341062451,1730313032359,-200.0,0.000349,2]
[341062452,1730313032369,-666.97669471,0.000349,2]
[341062453,1730313032380,-902.28440529,0.000349,2]
[341062454,1730313032389,-200.0,0.000349,2]
[341062455,1730313032398,-903.32843612,0.00034901,2]
[341062456,1730313032407,-1000.0,0.00034901,2]
[341062457,1730313032416,-338.34813703,0.00034901,2]
[341062458,1730313032427,-161.65186297,0.00034901,2]
[341062459,1730313032436,-2500.0,0.00034901,2]
[341062460,1730313032446,-167.51263919,0.00034901,2]
[341062461,1730313032455,-3972.9837798,0.00034904,2]
[341062462,1730313032464,-1804.08867339,0.00034966,2]
[341062463,1730313032474,-826.955846,0.00034966,2]
[341062464,1730313032485,-495.72833055,0.00034966,2]
[341062465,1730313032496,-6978.37365286,0.00034966,2]
[341062466,1730313032505,-394.07,0.0003499,3]
[341062467,1730313032515,-72205.41873346,0.00035,2]
[341062468,1730313032524,-2505.41343236,0.00035,10]
[341062469,1730313032533,-237.729971,0.00035,7]
[341062470,1730313032542,-159.288536,0.00035,7]
[341062471,1730313032551,-184.607214,0.00035,7]
[341062472,1730313032559,-151.0,0.00035,7]
[341062473,1730313032568,-151.0,0.00035,7]
[341062474,1730313032577,-151.0,0.00035,7]
[341062475,1730313032586,-151.0,0.00035,7]
[341062476,1730313032595,-794.8893,0.00035001,2]
[341062477,1730313032603,-2172.4569,0.00035001,2]
[341062478,1730313032612,-97590.6186915,0.00035001,2]
[341062479,1730313032634,-332.17124173,0.00035001,2]
[341062482,1730313037816,-1750.53397059,0.0002391,2]
[341062483,1730313037826,-2077.21006677,0.00035001,2]
[341062484,1730313037836,-2498.89572187,0.00035001,2]
[341062485,1730313037847,-2911.05463704,0.00035001,2]
[341062486,1730313037868,-8943.17754109,0.00035001,2]
[341062487,1730313037879,-184.607214,0.00035001,7]
[341062488,1730313037888,-151.0,0.00035001,7]
[341062489,1730313037897,-153.816473,0.00035001,7]
[341062490,1730313037906,-151.0,0.00035001,7]
[341062491,1730313037916,-151.0,0.00035001,7]
[341062492,1730313037927,-166.82,0.0003506,2]
[341062493,1730313037937,-151.0,0.00035101,7]
[341062494,1730313037948,-309.27273334,0.000352,2]
[341062495,1730313037962,-200.0,0.00035249,2]
[341062496,1730313037971,-200.0,0.00035249,2]
[341062497,1730313037980,-24907.96533745,0.000353,2]
[341062498,1730313037991,-1380.94,0.000353,2]
[341062499,1730313038064,-3353.94450525,0.000353,2]
[341062500,1730313039905,-667.77405461,0.000353,2]
[341062501,1730313039917,-1441.261576,0.000353,2]
[341062502,1730313039928,-268.87839766,0.000353,2]
[341062503,1730313040060,-212979.23612903,0.000353,2]
[341062504,1730313040070,-151.0,0.000353,7]
[341062505,1730313040080,-184.607214,0.000353,7]
[341062506,1730313040089,-151.0,0.000353,7]
[341062507,1730313040098,-151.0,0.000353,7]
[341062508,1730313040108,-1000.0,0.000355,2]
[341062509,1730313040117,-151.0,0.00035616,2]
[341062510,1730313040126,-151.0,0.00035616,2]
[341062511,1730313040135,-151.0,0.00035616,2]
[341062512,1730313040145,-151.0,0.000357,7]
[341062513,1730313040154,-151.0,0.000357,2]
[341062514,1730313040164,-1251.01,0.00035793,2]
[341062515,1730313040174,-500.0,0.000358,2]
[341062516,1730313040183,-204.01309088,0.000359,10]
[341062517,1730313040192,-614.62236884,0.0003599,2]
[341062518,1730313040202,-110013.41879943,0.00036,2]
[341062526,1730313042903,-961.71180346,0.00036,2]
[341062535,1730313045945,-250.0,0.00032696,2]
[341062536,1730313045955,-794.50867472,0.00036,2]
[341062537,1730313046021,-16193.78092589,0.00036,2]
[341062538,1730313046170,-303.54349999,0.00036,2]
[341062851,1730314232093,-842.79815,0.00032934,2]
[341062852,1730314232314,-220.55185,0.00032934,2]
[341062853,1730314232325,-152.0,0.00033978,3]
[341062854,1730314232335,-800.0,0.00034576,2]